bitfinex/quotes_ETHUSD_20250114
["timestamp","ask_amount","ask_price","bid_price","bid_amount"]
[1736850218370,3.0,3236.6,3236.0,0.31]
[1736850218842,3.0,3236.6,3235.8,0.31]
[1736850219174,3.68196147,3236.5,3235.8,0.31]
[1736850219859,3.68196147,3236.5,3235.7,0.31]
[1736850220184,3.0,3236.6,3235.7,3.40051]
[1736850220541,3.0,3236.6,3235.7,4.00674314]
[1736850220744,3.08947,3236.8,3235.9,0.31]
[1736850220947,4.56765595,3236.9,3235.9,0.31]
[1736850220948,3.0,3236.6,3235.9,0.31]
[1736850221360,3.608963,3236.6,3236.0,0.5987994]
[1736850221578,0.608963,3236.6,3236.0,0.5987994]
[1736850221878,3.08969,3236.6,3236.0,0.5987994]
[1736850222879,3.63951,3236.8,3236.1,0.2887994]
[1736850223081,4.56765595,3236.9,3236.1,1.0801994]
[1736850223304,0.25,3240.2,3236.9,0.7914]
[1736850223447,0.15494353,3238.1,3237.3,0.31]
[1736850223647,0.8272,3238.4,3237.7,0.48441054]
[1736850223648,3.08844,3237.9,3237.7,0.48441054]
[1736850223883,3.08844,3237.9,3237.7,0.30275658]
[1736850223884,3.08851,3237.8,3237.7,0.30275658]
[1736850224253,6.08851,3237.8,3237.7,0.30275658]
[1736850224448,7.62228247,3237.8,3237.7,0.30275658]
[1736850224807,4.62228247,3237.8,3237.7,0.30275658]
[1736850226875,4.62978247,3237.8,3237.7,0.30275658]
[1736850228590,4.62228247,3237.8,3237.7,0.30275658]
[1736850229766,3.0,3237.5,3236.6,3.68861174]
[1736850229967,0.608872,3237.4,3236.6,3.68861174]
[1736850230167,0.608872,3237.4,3236.7,0.28896174]
[1736850231268,0.608872,3237.4,3236.8,0.28896174]
[1736850232754,0.608872,3237.4,3236.6,3.39965]
[1736850233860,0.608872,3237.4,3236.7,0.2888619]
[1736850234061,0.608872,3237.4,3236.8,0.31]
[1736850235170,4.07235247,3237.8,3236.9,1.0809]
[1736850235374,3.08858,3237.8,3236.9,1.0809]
[1736850235576,3.08863,3237.7,3236.9,1.0809]
[1736850237299,0.55,3237.8,3236.9,1.0809]
[1736850237504,3.0,3237.7,3236.9,1.0809]
[1736850238500,3.0,3237.5,3236.9,1.0809]
[1736850238667,3.60887,3237.5,3236.9,1.0809]
[1736850240103,3.0,3237.3,3236.8,0.31]
[1736850241306,3.0,3237.3,3236.7,0.31]
[1736850242224,3.0,3237.3,3236.9,0.31]
[1736850242390,3.89809,3237.3,3236.9,0.31]
[1736850242601,0.389809,3237.2,3236.9,0.31]
[1736850243003,3.389809,3237.2,3236.9,0.31]
[1736850243207,0.389809,3237.2,3236.9,0.31]
[1736850243523,0.8091,3237.3,3236.9,0.31]
[1736850243671,3.0,3237.4,3236.9,0.31]
[1736850243867,0.8091,3237.6,3236.9,0.31]
[1736850244100,3.08842,3237.9,3237.1,0.31]
[1736850244417,0.55,3237.7,3237.1,0.31]
[1736850244936,3.0,3237.4,3237.1,0.31]
[1736850245719,0.55,3237.7,3237.1,0.31]
[1736850245720,3.0,3237.6,3237.1,0.31]
[1736850246141,3.08873,3237.6,3237.1,0.31]
[1736850246659,3.0,3237.4,3237.1,0.31]
[1736850246985,0.308842,3237.8,3237.1,0.31]
[1736850246986,3.0,3237.6,3237.1,0.31]
[1736850247192,0.308842,3237.8,3237.1,0.31]
[1736850247811,3.0,3237.6,3237.1,0.31]
[1736850248139,3.0,3237.4,3237.1,0.31]
[1736850248447,3.08884,3237.5,3236.9,0.31]
[1736850248448,3.0,3237.2,3236.9,0.31]
[1736850248949,6.08913,3237.2,3236.9,0.31]
[1736850249515,6.08913,3237.2,3236.7,0.31]
[1736850250512,3.0,3237.0,3236.7,0.31]
[1736850250716,3.08947,3236.8,3236.4,0.31]
[1736850251844,3.08947,3236.8,3235.9,3.09031]
[1736850251845,3.08947,3236.8,3236.2,0.31]
[1736850252245,3.08933,3237.0,3236.2,0.31]
[1736850252530,3.08933,3237.0,3236.4,0.31]
[1736850252752,3.0892,3237.1,3236.4,0.31]
[1736850252895,3.0,3237.3,3236.4,0.31]
[1736850253247,3.08929,3237.0,3236.4,0.31]
[1736850253544,3.0,3236.9,3236.4,0.31]
[1736850254101,6.08938,3236.9,3236.4,0.31]
[1736850255951,3.0,3236.9,3236.4,0.31]
[1736850257848,3.08947,3236.8,3236.4,0.31]
[1736850260474,3.0,3236.9,3236.4,0.31]
[1736850260623,0.55,3237.2,3236.4,0.31]
[1736850260828,3.08928,3237.0,3236.4,0.31]
[1736850261733,3.08956,3236.7,3236.4,0.31]
[1736850261942,3.0,3236.6,3236.1,0.476]
[1736850262135,3.08968,3236.6,3236.1,0.31]
[1736850262337,3.398648,3236.6,3236.1,0.31]
[1736850262542,0.308968,3236.6,3236.1,0.31]
[1736850262730,0.7871,3236.5,3236.1,0.31]
[1736850262928,3.09002,3236.3,3235.9,0.31]
[1736850263346,3.87692,3236.5,3235.9,0.31]
[1736850263639,3.0,3236.3,3235.9,0.31]
[1736850263822,3.08996,3236.3,3235.9,0.31]
[1736850264022,3.08996,3236.3,3235.8,0.166]
[1736850265346,4.5954988,3236.5,3235.8,0.166]
[1736850266049,3.8083988,3236.5,3235.8,0.166]
[1736850266426,3.0,3236.3,3235.8,0.166]
[1736850266628,3.0,3236.3,3235.8,0.79011619]
[1736850268786,3.0,3236.3,3235.8,0.166]
[1736850269101,3.68084488,3236.3,3235.8,0.166]
[1736850270855,3.0,3236.1,3235.8,0.166]
[1736850271203,0.68084488,3236.3,3235.8,0.166]
[1736850271405,3.0,3236.3,3235.8,0.166]
[1736850272158,3.398688,3236.6,3235.8,0.166]
[1736850272159,3.0,3236.5,3235.8,0.166]
[1736850272361,3.09001,3236.3,3235.8,0.166]
[1736850274105,3.09001,3236.3,3235.9,0.31]
[1736850275504,0.25,3239.0,3236.3,3.0]
[1736850275715,3.08827,3238.1,3237.2,0.31]
[1736850276003,3.397217,3238.0,3237.4,0.31]
[1736850276216,3.08839,3238.0,3237.4,0.31]
[1736850276416,3.0,3237.9,3237.4,0.31]
[1736850276619,3.08839,3238.0,3237.4,0.31]
[1736850277515,0.8216,3238.1,3237.4,0.31]
[1736850277718,0.390975,3238.0,3237.4,0.31]
[1736850279119,3.0,3237.6,3237.2,0.31]
[1736850279478,6.63846,3237.9,3237.2,0.31]
[1736850279684,3.08852,3237.8,3237.2,0.31]
[1736850280123,3.55,3237.9,3237.2,0.31]
[1736850280124,3.0,3237.6,3237.2,0.31]
[1736850280293,3.608864,3237.6,3237.2,0.31]
[1736850280882,3.697574,3237.6,3237.2,0.31]
[1736850281088,0.608864,3237.6,3237.0,0.31]
[1736850281288,0.55,3237.5,3237.0,0.31]
[1736850281498,0.55,3237.5,3236.9,0.165]
[1736850281700,3.34677811,3237.4,3236.8,0.8282]
[1736850281992,3.0,3237.3,3236.7,0.31]
[1736850282324,3.0,3237.3,3236.6,0.31]
[1736850282492,6.08906,3237.3,3236.6,0.31]
[1736850282693,3.08912,3237.2,3236.6,0.31]
[1736850282894,0.608912,3237.1,3236.6,0.31]
[1736850283696,0.608912,3237.1,3236.4,0.31]
[1736850283897,6.62010671,3237.1,3236.4,0.31]
[1736850284118,3.08929,3237.0,3236.4,0.31]
[1736850284328,3.0,3236.9,3236.4,0.31]
[1736850284630,0.608929,3236.8,3236.4,0.31]
[1736850284835,0.608929,3236.8,3236.3,0.31]
[1736850287814,0.608929,3236.8,3236.2,0.8282]
[1736850293166,3.0,3236.9,3236.2,3.91824]
[1736850293465,3.0,3236.9,3236.2,0.8282]
[1736850294068,0.8216,3237.4,3236.2,3.75021471]
[1736850294209,0.8216,3237.7,3236.5,3.23201471]
[1736850294413,0.8216,3237.7,3236.8,0.8282]
[1736850294713,3.90987,3238.1,3236.8,7.18054773]
[1736850294925,4.59305847,3238.1,3237.1,3.0891]
[1736850295928,3.08832,3238.0,3237.1,3.0891]
[1736850296218,3.0,3237.9,3237.1,3.0891]
[1736850297356,1.50478847,3238.1,3236.8,1.1382]
[1736850297542,3.0885,3237.9,3237.0,0.31]
[1736850298256,3.0885,3237.9,3237.0,3.39926]
[1736850298437,0.8216,3238.1,3237.0,0.31]
[1736850298647,3.0,3238.0,3237.1,3.08911]
[1736850298968,3.0,3238.0,3237.0,0.31]
[1736850298969,3.0,3238.0,3237.2,3.08905]
[1736850299754,3.08834,3238.0,3237.0,3.08924]
[1736850300133,3.08834,3238.0,3237.1,3.08917]
[1736850302256,0.8216,3238.1,3236.9,0.65672765]
[1736850302436,0.8216,3238.1,3237.2,3.08906]
[1736850302641,0.8216,3238.1,3237.3,0.165]
[1736850305237,0.8216,3238.1,3237.5,0.8243]
[1736850305441,0.751,3238.4,3237.7,3.08857]
[1736850307656,0.751,3238.4,3237.7,3.71640625]
[1736850308830,0.751,3238.4,3237.7,0.62783625]
[1736850309031,3.0,3238.1,3237.5,0.8243]
[1736850309277,3.0,3238.3,3237.5,0.8243]
[1736850310645,6.08804,3238.3,3237.5,0.8243]
[1736850311438,3.08831,3238.1,3237.5,0.8243]
[1736850311639,3.0,3237.9,3237.1,3.08916]
[1736850311838,3.0,3237.9,3237.4,0.159]
[1736850313269,0.55,3238.2,3237.4,0.159]
[1736850313270,3.0,3238.1,3237.4,0.159]
[1736850313660,3.08827,3238.1,3237.4,0.159]
[1736850313858,3.752097,3238.1,3237.4,0.159]
[1736850317675,0.663827,3238.1,3237.4,0.159]
[1736850317859,3.663827,3238.1,3237.4,0.159]
[1736850318807,3.663827,3238.1,3237.4,3.24788]
[1736850319978,0.663827,3238.1,3237.4,0.159]
[1736850320177,3.752057,3238.1,3237.4,0.159]
[1736850321222,0.4302057,3238.0,3237.4,0.159]
[1736850321598,0.663827,3238.1,3237.4,0.159]
[1736850321798,3.663827,3238.1,3237.4,0.159]
[1736850324535,3.663827,3238.1,3237.5,0.28960499]
[1736850325698,3.663827,3238.1,3237.4,0.159]
[1736850326736,3.752107,3238.1,3237.4,0.159]
[1736850326936,0.4302107,3238.0,3237.4,0.159]
[1736850327237,3.91703,3239.3,3237.8,0.8318]
[1736850327458,3.91759,3238.7,3237.8,3.9203]
[1736850327737,6.08775,3238.6,3237.8,0.8318]
[1736850328311,0.55,3238.6,3237.8,0.8318]
[1736850328502,6.08795,3238.4,3237.8,0.8318]
[1736850328709,0.90099647,3238.3,3237.8,0.8318]
[1736850328915,3.0,3238.2,3237.8,0.8318]
[1736850330208,3.0,3238.0,3237.7,0.159]
[1736850330541,3.08833,3238.0,3237.4,0.9761]
[1736850330733,3.7938,3238.1,3237.4,0.9761]
[1736850330920,0.98039947,3238.0,3237.4,0.9761]
[1736850331242,0.98039947,3238.0,3237.5,0.28970825]
[1736850332829,0.98039947,3238.0,3237.4,0.8171]
[1736850335051,0.98039947,3238.0,3237.4,0.9761]
[1736850335208,0.98039947,3238.0,3237.5,0.28973684]
[1736850335407,3.0,3238.1,3237.5,0.28973684]
[1736850336559,3.0,3238.1,3237.6,0.28973684]
[1736850337720,3.0,3238.1,3237.4,4.06497]
[1736850338644,9.80423471,3237.9,3237.1,0.8171]
[1736850338848,3.0,3237.7,3237.3,0.159]
[1736850339162,3.0,3237.7,3237.1,0.9761]
[1736850339367,3.0,3237.7,3237.2,0.28983097]
[1736850339657,2.92201471,3237.3,3237.2,0.28983097]
[1736850339857,10.09700618,3237.3,3237.2,0.28983097]
[1736850340155,3.29220147,3237.3,3237.2,0.28983097]
[1736850340323,6.38119147,3237.3,3237.2,0.28983097]
[1736850340656,3.0,3237.1,3236.8,0.28983097]
[1736850341258,3.0,3237.1,3236.5,0.159]
[1736850342762,3.08921,3237.1,3236.5,0.159]
[1736850342966,3.08921,3237.1,3236.6,0.28934027]
[1736850343146,3.0,3236.9,3236.6,0.28934027]
[1736850343354,2.92201471,3236.7,3236.6,0.28934027]
[1736850343663,10.35537471,3236.7,3236.6,0.28934027]
[1736850344366,3.0,3236.0,3235.5,1.59443852]
[1736850345335,3.0,3236.0,3235.5,1.43543852]
[1736850346539,6.09025,3236.0,3235.5,1.43543852]
[1736850346982,3.7938,3236.1,3235.5,1.43543852]
[1736850347155,3.88396,3236.1,3235.5,1.43543852]
[1736850347537,0.7938,3236.1,3235.5,1.43543852]
[1736850347681,3.09024,3236.0,3235.5,1.43543852]
[1736850347883,3.09024,3236.0,3235.5,0.61833852]
[1736850348582,3.0,3235.8,3235.5,0.61833852]
[1736850348951,3.0,3235.8,3235.2,0.9232]
[1736850351088,3.0,3235.8,3235.2,0.7642]
[1736850351291,3.59220147,3235.7,3235.0,0.159]
[1736850351494,0.63034262,3237.1,3236.0,3.09022]
[1736850351699,0.8296,3237.5,3236.2,3.85423]
[1736850351700,3.08892,3237.4,3236.2,3.85423]
[1736850351865,0.8296,3237.5,3236.3,0.159]
[1736850352057,3.9184,3237.5,3236.3,0.159]
[1736850352282,3.9184,3237.5,3236.3,3.24893]
[1736850352598,3.0,3237.4,3236.4,3.08984]
[1736850352757,0.69184,3237.3,3236.4,3.08984]
[1736850355704,0.69184,3237.3,3236.5,3.08975]
[1736850358301,0.69184,3237.3,3236.6,0.7642]
[1736850359308,0.8296,3237.5,3236.7,0.31]
[1736850359513,0.8035,3238.7,3237.0,2.92201471]
[1736850359811,0.8035,3238.7,3236.7,3.39955]
[1736850359812,0.8035,3238.7,3237.8,0.775]
[1736850359972,0.8035,3238.7,3237.8,4.17349]
[1736850360172,0.389107,3238.6,3237.8,1.085]
[1736850360376,3.08741,3239.0,3238.0,3.08831]
[1736850360708,3.08749,3238.9,3237.8,4.17348]
[1736850361412,0.8035,3239.1,3237.8,4.17348]
[1736850361413,0.8035,3239.1,3237.8,1.085]
[1736850361611,0.8035,3239.1,3238.0,3.39832]
[1736850361913,3.89081,3239.1,3238.0,3.39832]
[1736850362118,3.389081,3239.0,3238.0,3.39832]
[1736850363415,3.08746,3238.9,3237.9,0.31]
[1736850364313,3.08746,3238.9,3237.9,3.08839]
[1736850367127,0.55,3238.9,3237.8,1.40777038]
[1736850367287,3.08784,3238.6,3237.8,0.934]
[1736850367487,0.308784,3238.5,3237.8,0.934]
[1736850367820,0.8035,3238.5,3237.8,0.934]
[1736850368023,3.0,3238.2,3237.8,0.934]
[1736850368324,3.89139,3238.5,3237.8,0.934]
[1736850368487,3.0,3238.4,3237.8,0.934]
[1736850369097,0.8035,3238.5,3237.8,0.934]
[1736850369299,3.46831,3238.4,3237.8,0.934]
[1736850369498,3.46831,3238.4,3237.8,0.775]
[1736850370927,0.38035,3238.4,3237.8,0.775]
[1736850371220,3.0,3238.2,3237.5,0.775]
[1736850371424,3.08815,3238.2,3237.5,0.934]
[1736850371625,0.308815,3238.1,3237.5,0.934]
[1736850372197,3.0,3238.0,3237.5,0.775]
[1736850372424,3.0,3237.8,3237.2,0.775]
[1736850372594,3.0,3237.8,3237.2,0.934]
[1736850372798,3.0,3237.8,3237.2,0.775]
[1736850373245,4.412351,3237.8,3237.2,0.775]
[1736850373739,4.500871,3237.8,3237.2,0.775]
[1736850373945,1.412351,3237.8,3237.2,0.775]
[1736850374153,3.0,3238.1,3237.3,0.3096]
[1736850374446,3.08784,3238.6,3237.9,0.3096]
[1736850375448,3.0,3238.7,3237.9,0.3096]
[1736850375651,3.08766,3238.7,3237.9,0.3096]
[1736850375849,3.0,3238.9,3237.9,0.3096]
[1736850375999,3.0877,3238.7,3237.9,0.3096]
[1736850376845,3.0,3238.5,3237.9,0.3096]
[1736850377761,0.67255147,3238.8,3237.9,0.3096]
[1736850377968,3.0,3238.5,3237.9,0.3096]
[1736850378608,3.0,3238.7,3237.9,0.3096]
[1736850378808,3.08767,3238.7,3238.1,0.3096]
[1736850379134,6.08749,3238.9,3238.1,0.3096]
[1736850380133,3.0,3238.7,3238.1,0.3096]
[1736850381839,0.608756,3238.7,3238.1,0.3096]
[1736850382040,3.0,3238.9,3238.1,0.3096]
[1736850382041,3.0,3238.4,3238.1,0.3096]
[1736850382335,3.08797,3238.4,3238.0,0.7728]
[1736850383263,3.0,3238.1,3238.0,0.7728]
[1736850383412,3.0,3238.1,3237.8,0.3096]
[1736850383737,3.08826,3238.1,3237.8,0.3096]
[1736850383954,3.08842,3237.9,3237.8,0.3096]
[1736850384163,3.08826,3238.1,3237.8,0.3096]
[1736850385475,3.0,3237.9,3237.8,0.3096]
[1736850385759,6.08842,3237.9,3237.8,0.3096]
[1736850385971,7.37768747,3237.9,3237.8,0.3096]
[1736850386558,7.37768747,3237.9,3237.2,0.3096]
[1736850386752,3.0,3237.6,3237.2,0.3096]
[1736850387920,3.08806,3238.3,3237.3,0.7728]
[1736850388125,3.0883,3238.1,3237.4,0.3096]
[1736850388657,3.0,3238.2,3237.4,0.3096]
[1736850388873,3.08833,3238.0,3237.4,0.3096]
[1736850389074,0.608806,3238.1,3237.4,0.3096]
[1736850389279,3.0,3237.8,3237.4,0.3096]
[1736850391938,3.697096,3238.1,3237.4,0.3096]
[1736850392259,3.08833,3238.0,3237.4,0.3096]
[1736850392433,3.7580436,3238.0,3237.4,0.3096]
[1736850392938,3.0,3238.0,3237.4,0.3096]
[1736850393773,3.0,3238.0,3237.6,0.3096]
[1736850395287,3.08833,3238.0,3237.6,0.3096]
[1736850395783,3.0,3238.1,3237.6,0.3096]
[1736850395940,0.8129,3238.7,3237.7,1.0829]
[1736850396144,3.08791,3238.5,3237.7,1.0829]
[1736850396598,3.0,3238.4,3237.7,1.0829]
[1736850396909,3.08795,3238.4,3237.9,0.3096]
[1736850397270,3.0,3238.2,3237.9,0.3096]
[1736850398212,3.08813,3238.2,3237.8,0.3096]
[1736850400137,6.08842,3237.9,3237.8,0.3096]
[1736850400301,3.0,3237.9,3237.8,0.3096]
[1736850400612,6.08842,3237.9,3237.8,0.3096]
[1736850401413,3.08858,3237.8,3237.5,0.3096]
[1736850401717,3.0887,3237.6,3237.5,0.3096]
[1736850401884,6.98977147,3237.6,3237.5,0.3096]
[1736850402083,6.98977147,3237.6,3237.2,0.3096]
[1736850402084,3.08898,3237.4,3237.2,0.3096]
[1736850402899,3.08899,3237.3,3237.2,0.3096]
[1736850403422,3.08912,3237.2,3237.0,0.3096]
[1736850403715,3.08899,3237.3,3237.0,0.3096]
[1736850403929,0.90107147,3237.6,3237.0,0.3096]
[1736850404227,3.08913,3237.2,3237.0,0.3096]
[1736850407712,3.0,3237.5,3237.0,0.3096]
[1736850408011,3.0,3237.5,3237.1,0.7733]
[1736850408186,3.0,3237.5,3237.2,0.3096]
[1736850411443,2.92201471,3238.2,3237.3,1.0829]
[1736850411597,6.01049471,3237.9,3237.3,1.0829]
[1736850412429,3.0,3237.8,3237.3,1.0829]
[1736850412640,6.0888,3237.5,3237.4,0.3096]
[1736850413242,3.0,3237.6,3237.4,0.3096]
[1736850413547,3.0,3237.8,3237.4,0.3096]
[1736850413857,6.01073471,3237.6,3237.4,0.3096]
[1736850414528,6.00073471,3237.6,3237.4,0.3096]
[1736850415533,6.00073471,3237.6,3237.1,0.3096]
[1736850416098,6.00073471,3237.6,3237.2,0.28925797]
[1736850416295,6.00073471,3237.6,3237.3,0.3096]
[1736850416758,6.08836,3238.0,3237.4,1.0829]
[1736850416900,6.08836,3238.0,3236.8,3.08945]
[1736850416901,0.59885797,3237.1,3236.8,3.08945]
[1736850417105,3.0,3236.8,3235.1,0.48135678]
[1736850417305,3.0,3236.5,3235.1,0.48135678]
[1736850417501,3.0,3236.5,3235.7,0.61551406]
[1736850417705,6.08981,3236.5,3235.7,0.61551406]
[1736850417945,6.08981,3236.5,3235.8,0.28917934]
[1736850418139,3.0,3236.6,3235.8,0.32008232]
[1736850418521,3.0,3236.6,3235.9,0.159]
[1736850418716,3.0,3236.6,3236.0,0.03089753]
[1736850419134,3.0,3236.6,3236.1,0.159]
[1736850419348,6.08967,3236.6,3236.1,0.159]
[1736850419949,6.08967,3236.6,3236.2,0.7606]
[1736850420314,3.08978,3236.5,3236.2,0.7606]
[1736850421563,3.0,3236.6,3236.2,0.7606]
[1736850422264,6.08974,3236.6,3236.2,0.7606]
[1736850425372,3.0,3236.7,3236.2,0.7606]
[1736850425522,3.0,3236.7,3236.3,0.159]
[1736850425723,3.08958,3236.7,3236.4,0.159]
[1736850426977,3.0,3236.8,3236.4,0.159]
[1736850427286,3.08975,3236.5,3236.4,0.159]
[1736850427434,6.08989,3236.4,3236.3,0.159]
[1736850428331,3.0901,3236.2,3236.1,0.158]
[1736850432752,3.0901,3236.2,3235.8,0.7887]
[1736850432935,3.09023,3236.0,3235.8,0.7887]
[1736850433136,3.69911,3236.2,3235.8,0.9467]
[1736850433583,3.09033,3235.9,3235.8,0.9467]
[1736850433892,3.0,3236.0,3235.6,0.158]
[1736850434108,3.0,3236.0,3235.5,1.11067438]
[1736850434109,3.09048,3235.8,3235.5,1.11067438]
[1736850434252,3.09061,3235.6,3235.5,0.32197438]
[1736850434452,3.09061,3235.6,3235.5,0.47997438]
[1736850434771,3.09061,3235.6,3235.3,1.42221776]
[1736850434972,3.0,3235.8,3235.4,0.158]
[1736850435184,3.09071,3235.5,3235.4,0.158]
[1736850436311,3.0908,3235.4,3235.3,0.79151776]
[1736850436815,3.0908,3235.4,3235.3,0.63351776]
[1736850437510,3.09098,3235.3,3235.1,0.44655342]
[1736850438178,3.09098,3235.3,3235.1,0.158]
[1736850438887,3.09098,3235.3,3235.2,0.61666754]
[1736850440974,3.09098,3235.3,3235.1,0.158]
[1736850441196,3.09098,3235.3,3235.1,0.78568719]
[1736850441360,3.09098,3235.3,3235.1,0.158]
[1736850446196,3.09099,3235.2,3235.1,0.158]
[1736850446398,3.09096,3235.3,3235.1,0.158]
[1736850446599,3.09099,3235.2,3235.1,0.158]
[1736850446774,3.09119,3235.0,3234.7,0.158]
[1736850447794,3.09132,3234.9,3234.7,0.158]
[1736850448470,3.09138,3234.8,3234.7,0.158]
[1736850448713,3.09147,3234.7,3234.5,0.89429093]
[1736850448998,3.09157,3234.6,3234.5,0.28895259]
[1736850450005,6.09143,3234.8,3234.5,0.28895259]
[1736850450301,3.09148,3234.7,3234.5,0.28895259]
[1736850450685,3.09157,3234.6,3234.5,0.28895259]
[1736850453209,6.09157,3234.6,3234.5,0.28895259]
[1736850454777,3.0,3234.6,3234.5,0.28895259]
[1736850455120,0.821,3235.4,3234.6,0.8049]
[1736850455618,0.821,3235.6,3234.6,0.8049]
[1736850456177,3.0,3235.2,3234.6,0.8049]
[1736850457087,6.83332471,3236.0,3234.7,0.03091219]
[1736850457315,3.91129,3236.0,3235.0,3.09118]
[1736850457520,3.09041,3235.9,3235.1,0.99380656]
[1736850457756,6.09044,3235.8,3235.1,0.9629]
[1736850458322,0.821,3236.0,3235.1,0.9629]
[1736850458483,3.09031,3236.0,3235.2,0.03090661]
[1736850458838,0.60901,3236.2,3235.3,0.8049]
[1736850458839,3.09008,3236.2,3235.3,0.8049]
[1736850458977,3.09008,3236.2,3235.4,0.03090419]
[1736850459398,3.0,3236.1,3235.3,0.8049]
[1736850459851,3.0,3236.1,3235.4,0.0309042]
[1736850460126,3.09008,3236.2,3235.4,0.0309042]
[1736850460278,6.83273471,3236.6,3235.5,0.158]
[1736850460279,3.09015,3236.1,3235.5,0.158]
[1736850460919,3.09015,3236.1,3235.6,0.158]
[1736850464223,3.0,3236.4,3235.7,0.8049]
[1736850464427,4.03828047,3236.4,3235.7,0.8049]
[1736850465498,3.09013,3236.2,3235.7,0.8049]
[1736850466637,3.09019,3236.1,3235.7,0.8049]
[1736850467011,3.09033,3235.9,3235.7,0.8049]
[1736850467320,3.0,3235.9,3235.4,0.8049]
[1736850467527,3.09058,3235.7,3235.4,0.8049]
[1736850467729,0.67430147,3235.8,3235.2,0.28934496]
[1736850467929,6.0909,3235.3,3235.2,0.28934496]
[1736850468591,3.0909,3235.3,3234.9,0.3096]
[1736850475574,3.09102,3235.2,3234.9,0.3096]
[1736850475877,3.400122,3235.2,3234.8,0.9629]
[1736850477335,3.09102,3235.2,3234.8,0.9629]
[1736850477734,3.09117,3235.1,3234.8,0.9629]
[1736850477959,3.09115,3235.1,3234.8,0.9629]
[1736850478154,3.09115,3235.1,3234.8,0.8049]
[1736850478562,3.09128,3234.9,3234.6,1.08278174]
[1736850478732,3.09128,3234.9,3234.5,0.46291299]
[1736850478733,0.309128,3234.9,3234.5,0.46291299]
[1736850479075,3.09147,3234.7,3234.3,0.9629]
[1736850479358,3.09147,3234.7,3234.2,0.158]
[1736850479359,3.09157,3234.6,3234.2,0.158]
[1736850479658,3.09202,3234.2,3233.9,0.8049]
[1736850480063,3.09176,3234.4,3233.9,0.8049]
[1736850480359,4.47396747,3234.3,3233.6,1.2725]
[1736850480569,3.09215,3234.0,3233.6,1.2725]
[1736850481062,3.09215,3234.0,3233.6,0.8049]
[1736850481232,3.09227,3233.9,3233.6,0.8049]
[1736850482329,3.09247,3233.7,3233.4,1.28522161]
[1736850482584,0.309227,3233.8,3233.4,1.28522161]
[1736850482733,3.09227,3233.9,3233.4,1.28522161]
[1736850483684,3.0,3234.1,3233.4,1.28522161]
[1736850484092,3.09251,3233.7,3233.4,1.28522161]
[1736850484295,3.09262,3233.5,3233.4,0.32232161]
[1736850484485,2.92201471,3233.6,3233.0,0.28884073]
[1736850484704,3.09273,3233.4,3233.0,0.28884073]
[1736850486016,0.37027147,3233.5,3232.9,0.8049]
[1736850486225,3.09257,3233.6,3232.9,0.8049]
[1736850487225,0.7807,3233.7,3232.9,1.4132271]
[1736850487429,3.0,3233.8,3233.0,0.03092975]
[1736850487614,3.09199,3234.2,3233.2,3.09289]
[1736850487930,3.09199,3234.2,3233.3,0.99382555]
[1736850488351,3.83939675,3234.2,3233.3,4.08660555]
[1736850489144,3.83939675,3234.2,3233.3,4.05568]
[1736850489337,3.83939675,3234.2,3233.4,0.3096]
[1736850489543,3.83939675,3234.2,3233.3,4.05568]
[1736850489832,3.83939675,3234.2,3233.4,0.03092285]
[1736850489995,0.74740675,3234.2,3233.4,0.03092285]
[1736850490191,0.74740675,3234.2,3233.3,0.9629]
[1736850490389,3.74740675,3234.2,3233.3,4.05571]
[1736850490589,3.74740675,3234.2,3233.4,0.03092285]
[1736850491428,3.74740675,3234.2,3233.4,0.03092275]
[1736850491933,3.74740675,3234.2,3233.3,4.08661285]
[1736850492139,3.74740675,3234.2,3233.4,0.8049]
[1736850492295,3.0,3234.2,3233.5,0.03092285]
[1736850492817,3.0,3234.2,3233.6,0.6287668]
[1736850494131,3.0,3234.4,3233.6,0.6287668]
[1736850494339,3.0,3234.4,3233.4,1.1145]
[1736850494500,3.09216,3234.0,3233.4,0.8049]
[1736850494901,3.092,3234.2,3233.4,0.8049]
[1736850495119,4.01038,3234.2,3233.5,0.03092284]
[1736850495511,3.09173,3234.5,3233.7,0.7737]
[1736850495905,3.09173,3234.5,3233.8,0.03091949]
[1736850496902,3.0,3234.4,3233.8,0.03091949]
[1736850497202,0.7807,3234.6,3233.8,0.03091949]
[1736850497533,3.09132,3234.9,3233.9,3.86593]
[1736850497734,2.92201471,3235.1,3234.0,0.80461662]
[1736850497913,3.09139,3234.8,3234.0,0.80461662]
[1736850498115,3.09139,3234.8,3234.1,0.158]
[1736850498531,3.37476147,3235.0,3234.3,0.7737]
[1736850498748,3.0,3234.8,3234.3,0.7737]
[1736850499586,3.37476147,3235.0,3234.3,0.7737]
[1736850499786,0.93878962,3234.9,3234.3,0.7737]
[1736850500280,3.09146,3234.8,3234.3,0.7737]
[1736850501627,0.93878962,3234.9,3234.3,0.7737]
[1736850501948,3.09157,3234.6,3234.0,0.158]
[1736850502107,3.8256,3234.7,3234.0,0.158]
[1736850502306,0.67476147,3234.6,3234.0,0.158]